[Event "Chpt Reg Jeunes Occitanie 2026 - Espalion"]
[Site "Espalion, France"]
[Round "9.2"]
[ECO "?"]
[Annotator "?"]
[TimeControl "1h30 + 30sec/cp"]

1. e4 {[%clk 1:30:57][%emt 0:00:02]} 1... Nc6 {[%clk 1:30:55][%emt 0:00:05]}
2. d4 {[%clk 1:31:13][%emt 0:00:14]} 2... d5 {[%clk 1:31:20][%emt 0:00:05]} 3.
e5 {[%clk 1:31:04][%emt 0:00:39]} 3... Bf5 {[%clk 1:31:44][%emt 0:00:06]} 4.
c3 {[%clk 1:29:51][%emt 0:01:43]} 4... e6 {[%clk 1:32:09][%emt 0:00:06]} 5.
Bd3 {[%clk 1:28:44][%emt 0:01:36]} 5... Nge7 {[%clk 1:32:32][%emt 0:00:07]} 6.
Nf3 {[%clk 1:28:14][%emt 0:00:59]} 6... Qd7 {[%clk 1:31:48][%emt 0:01:14]} 7.
Be3 {[%clk 1:25:20][%emt 0:03:25]} 7... f6 {[%clk 1:30:46][%emt 0:01:32]} 8.
O-O {[%clk 1:17:57][%emt 0:07:53]} 8... Bxd3 {[%clk 1:25:48][%emt 0:05:28]} 9.
Qxd3 {[%clk 1:18:18][%emt 0:00:09]} 9... fxe5 {[%clk 1:26:08][%emt 0:00:09]}
10. dxe5 {[%clk 1:15:17][%emt 0:03:32]} 10... Ng6 {[%clk 1:25:21][%emt
0:01:16]} 11. Bd4 {[%clk 1:13:03][%emt 0:02:45]} 11... Nce7 {[%clk
1:24:19][%emt 0:01:32]} 12. Nbd2 {[%clk 1:09:25][%emt 0:04:08]} 12... Nf5
{[%clk 1:22:23][%emt 0:02:26]} 13. Be3 {[%clk 1:00:10][%emt 0:09:45]} 13... c5
{[%clk 1:17:38][%emt 0:05:14]} 14. Rfe1 {[%clk 0:53:08][%emt 0:07:33]} 14...
O-O-O {[%clk 1:12:59][%emt 0:05:09]} 15. Rac1 {[%clk 0:48:49][%emt 0:04:48]}
15... h6 {[%clk 1:08:56][%emt 0:04:34]} 16. Nf1 {[%clk 0:42:45][%emt 0:06:34]}
16... Ngh4 {[%clk 1:03:24][%emt 0:06:02]} 17. Nxh4 {[%clk 0:41:26][%emt
0:01:49]} 17... Nxh4 {[%clk 1:03:51][%emt 0:00:03]} 18. Ng3 {[%clk
0:40:39][%emt 0:01:17]} 18... Qc6 {[%clk 1:00:15][%emt 0:04:05]} 19. f3 {[%clk
0:35:51][%emt 0:05:19]} 19... g5 {[%clk 0:59:28][%emt 0:01:17]} 20. b4 {[%clk
0:33:37][%emt 0:02:45]} 20... a6 {[%clk 0:55:19][%emt 0:04:39]} 21. a4 {[%clk
0:28:19][%emt 0:05:47]} 21... Qxa4 {[%clk 0:48:57][%emt 0:06:52]} 22. Bxc5
{[%clk 0:27:42][%emt 0:01:07]} 22... Bxc5+ {[%clk 0:47:43][%emt 0:01:44]} 23.
bxc5 {[%clk 0:28:03][%emt 0:00:09]} 23... Qc6 {[%clk 0:47:17][%emt 0:00:56]}
24. Qd4 {[%clk 0:26:39][%emt 0:01:54]} 24... Rhf8 {[%clk 0:47:03][%emt
0:00:43]} 25. Rb1 {[%clk 0:22:05][%emt 0:05:04]} 25... Rf4 {[%clk
0:40:51][%emt 0:06:42]} 26. Rb6 {[%clk 0:20:06][%emt 0:02:29]} 26... Qxb6
{[%clk 0:37:37][%emt 0:03:44]} 27. cxb6 {[%clk 0:20:25][%emt 0:00:12]} 27...
Rxd4 {[%clk 0:37:59][%emt 0:00:08]} 28. cxd4 {[%clk 0:20:50][%emt 0:00:05]}
28... Kd7 {[%clk 0:37:39][%emt 0:00:50]} 29. Nh5 {[%clk 0:04:50][%emt 0:16:30]}
 29... Rc8 {[%clk 0:36:51][%emt 0:01:18]} 30. Re2 {[%clk 0:02:28][%emt
0:02:52]} 30... Rc4 {[%clk 0:35:27][%emt 0:01:54]} 31. Rd2 {[%clk
0:00:40][%emt 0:02:18]} 31... Nf5 {[%clk 0:35:19][%emt 0:00:36]} 32. f4 {[%clk
0:00:34][%emt 0:00:38]} 32... gxf4 {[%clk 0:33:50][%emt 0:01:59]} 33. Nxf4
{[%clk 0:00:51][%emt 0:00:13]} 33... Nxd4 {[%clk 0:32:51][%emt 0:01:29]} 34.
Kf2 {[%clk 0:00:34][%emt 0:00:47]} 34... Nf5 {[%clk 0:32:19][%emt 0:01:00]}
35. Kf3 {[%clk 0:00:36][%emt 0:00:30]} 35... Re4 {[%clk 0:31:20][%emt 0:01:26]}
 36. Nxd5 {[%clk 0:00:39][%emt 0:00:30]} 36... Rxe5 {[%clk 0:28:47][%emt
0:03:03]} 37. Nf4+ {[%clk 0:00:31][%emt 0:00:38]} 37... Kc6 {[%clk
0:28:43][%emt 0:00:34]} 38. Rb2 {[%clk 0:00:53][%emt 0:00:08]} 38... Nd4+
{[%clk 0:28:54][%emt 0:00:18]} 39. Kg4 {[%clk 0:01:10][%emt 0:00:13]} 39...
Rg5+ {[%clk 0:28:51][%emt 0:00:33]} 40. Kh3 {[%clk 0:01:21][%emt 0:00:18]}
40... a5 {[%clk 0:27:42][%emt 0:01:40]} 41. g4 {[%clk 0:01:22][%emt 0:00:29]}
41... Rb5 {[%clk 0:26:27][%emt 0:01:44]} 42. Rd2 {[%clk 0:01:25][%emt 0:00:28]}
 42... Rb3+ {[%clk 0:26:47][%emt 0:00:10]} 43. Kg2 {[%clk 0:01:37][%emt
0:00:18]} 43... e5 {[%clk 0:26:43][%emt 0:00:33]} 44. Nd3 {[%clk 0:01:31][%emt
0:00:37]} 44... Kd5 {[%clk 0:26:20][%emt 0:00:52]} 45. h4 {[%clk 0:01:44][%emt
0:00:18]} 45... Rxb6 {[%clk 0:26:02][%emt 0:00:49]} 46. Kg3 {[%clk
0:01:49][%emt 0:00:24]} 46... Rb3 {[%clk 0:23:56][%emt 0:02:36]} 47. Kf2
{[%clk 0:01:55][%emt 0:00:24]} 47... e4 {[%clk 0:22:52][%emt 0:01:34]} 48.
Nf4+ {[%clk 0:01:59][%emt 0:00:26]} 48... Kc4 {[%clk 0:23:06][%emt 0:00:15]}
49. Kg2 {[%clk 0:01:51][%emt 0:00:38]} 49... a4 {[%clk 0:22:29][%emt 0:01:08]}
50. g5 {[%clk 0:01:53][%emt 0:00:27]} 50... hxg5 {[%clk 0:22:22][%emt 0:00:38]}
 51. hxg5 {[%clk 0:02:16][%emt 0:00:07]} 51... Rb5 {[%clk 0:22:33][%emt
0:00:17]} 52. g6 {[%clk 0:01:39][%emt 0:01:09]} 52... e3 {[%clk 0:22:19][%emt
0:00:44]} 53. Rxd4+ {[%clk 0:00:36][%emt 0:01:33]} 53... Kxd4 {[%clk
0:22:32][%emt 0:00:17]} 54. Ne6+ {[%clk 0:01:02][%emt 0:00:04]} 54... Kc3
{[%clk 0:17:08][%emt 0:05:54]} 55. g7 {[%clk 0:01:26][%emt 0:00:05]} 55... e2
{[%clk 0:17:22][%emt 0:00:17]} 56. g8=Q {[%clk 0:01:28][%emt 0:00:28]} 56...
e1=Q {[%clk 0:17:39][%emt 0:00:13]} 57. Qc8+ {[%clk 0:01:24][%emt 0:00:34]}
57... Kb2 {[%clk 0:17:59][%emt 0:00:10]} 58. Qc4 {[%clk 0:00:49][%emt 0:01:06]}
 58... Qd2+ {[%clk 0:18:12][%emt 0:00:16]} 59. Kg1 {[%clk 0:01:00][%emt
0:00:19]} 59... Qc1+ {[%clk 0:18:38][%emt 0:00:04]} 0-1

[White "POSOCCO DE GRANDI, Marc"]
[Black "DECLERCK, Timothee"]
[WhiteElo "1871"]
[BlackElo "1854"]
[Result "1/2-1/2"]
[Date "2026.03.08"]

[Event "Chpt Reg Jeunes Occitanie 2026 - Espalion"]
[Site "Espalion, France"]
[Round "9.3"]
[ECO "?"]
[Annotator "?"]
[TimeControl "1h30 + 30sec/cp"]

1. d4 {[%clk 1:30:57][%emt 0:00:03]} 1... d5 {[%clk 1:30:54][%emt 0:00:06]} 2.
c4 {[%clk 1:31:16][%emt 0:00:10]} 2... e6 {[%clk 1:31:16][%emt 0:00:09]} 3.
Nf3 {[%clk 1:31:33][%emt 0:00:13]} 3... Nf6 {[%clk 1:31:36][%emt 0:00:10]} 4.
g3 {[%clk 1:31:49][%emt 0:00:14]} 4... Bb4+ {[%clk 1:31:55][%emt 0:00:11]} 5.
Bd2 {[%clk 1:32:12][%emt 0:00:07]} 5... Be7 {[%clk 1:32:10][%emt 0:00:14]} 6.
Bg2 {[%clk 1:32:33][%emt 0:00:10]} 6... O-O {[%clk 1:32:23][%emt 0:00:17]} 7.
O-O {[%clk 1:32:53][%emt 0:00:11]} 7... Nbd7 {[%clk 1:32:33][%emt 0:00:21]} 8.
Qc2 {[%clk 1:32:55][%emt 0:00:27]} 8... c6 {[%clk 1:32:39][%emt 0:00:23]} 9.
Rd1 {[%clk 1:32:37][%emt 0:00:48]} 9... b6 {[%clk 1:32:13][%emt 0:00:56]} 10.
Bf4 {[%clk 1:29:38][%emt 0:03:29]} 10... Bb7 {[%clk 1:25:23][%emt 0:07:20]}
11. Nc3 {[%clk 1:14:55][%emt 0:15:14]} 11... Rc8 {[%clk 1:17:29][%emt 0:08:24]}
 12. e4 {[%clk 1:02:19][%emt 0:13:04]} 12... dxc4 {[%clk 0:56:58][%emt
0:21:02]} 13. Ne5 {[%clk 0:50:51][%emt 0:11:58]} 13... Nh5 {[%clk
0:44:23][%emt 0:13:06]} 14. Be3 {[%clk 0:41:47][%emt 0:09:33]} 14... b5 {[%clk
0:37:22][%emt 0:07:32]} 15. Nxd7 {[%clk 0:23:35][%emt 0:18:42]} 15... Qxd7
{[%clk 0:37:45][%emt 0:00:06]} 16. d5 {[%clk 0:23:48][%emt 0:00:18]} 16... b4
{[%clk 0:24:46][%emt 0:13:29]} 17. d6 {[%clk 0:16:54][%emt 0:07:23]} 17...
bxc3 {[%clk 0:12:40][%emt 0:12:36]} 18. dxe7 {[%clk 0:16:27][%emt 0:00:57]}
18... Qxe7 {[%clk 0:13:05][%emt 0:00:06]} 19. Qxc3 {[%clk 0:16:01][%emt
0:00:56]} 19... a6 {[%clk 0:05:57][%emt 0:07:38]} 20. Qxc4 {[%clk
0:16:01][%emt 0:00:30]} 20... Rfd8 {[%clk 0:06:00][%emt 0:00:27]} 21. Qc5
{[%clk 0:13:07][%emt 0:03:23]} 21... Qxc5 {[%clk 0:06:20][%emt 0:00:11]} 22.
Bxc5 {[%clk 0:13:35][%emt 0:00:02]} 22... Nf6 {[%clk 0:03:39][%emt 0:03:11]}
23. f3 {[%clk 0:09:59][%emt 0:04:05]} 23... Rd7 {[%clk 0:03:11][%emt 0:00:59]}
24. Rxd7 {[%clk 0:08:57][%emt 0:01:32]} 24... Nxd7 {[%clk 0:03:40][%emt
0:00:02]} 25. Be3 {[%clk 0:09:19][%emt 0:00:08]} 25... Kf8 {[%clk
0:03:24][%emt 0:00:45]} 26. Rd1 {[%clk 0:08:24][%emt 0:01:24]} 26... Ke8
{[%clk 0:03:19][%emt 0:00:35]} 27. b4 {[%clk 0:07:43][%emt 0:01:12]} 27... c5
{[%clk 0:02:13][%emt 0:01:37]} 28. bxc5 {[%clk 0:07:33][%emt 0:00:40]} 28...
Nxc5 {[%clk 0:02:42]} 29. Rb1 {[%clk 0:07:39][%emt 0:00:23]} 29... Ba8 {[%clk
0:00:42][%emt 0:02:30]} 30. Bxc5 {[%clk 0:08:03][%emt 0:00:05]} 30... Rxc5
{[%clk 0:01:05][%emt 0:00:08]} 31. Rb8+ {[%clk 0:08:27][%emt 0:00:06]} 31...
Ke7 {[%clk 0:01:29][%emt 0:00:04]} 32. Rxa8 {[%clk 0:08:53][%emt 0:00:06]}
32... Ra5 {[%clk 0:01:49][%emt 0:00:10]} 33. Bf1 {[%clk 0:08:22][%emt 0:01:01]}
 33... Rxa2 {[%clk 0:02:16][%emt 0:00:03]} 34. Rxa6 {[%clk 0:08:43][%emt
0:00:09]} 34... Rb2 {[%clk 0:02:22][%emt 0:00:24]} 35. Ra7+ {[%clk
0:08:13][%emt 0:01:00]} 35... Kf6 {[%clk 0:02:37][%emt 0:00:14]} 36. f4 {[%clk
0:08:04][%emt 0:00:39]} 36... g6 {[%clk 0:02:47][%emt 0:00:21]} 37. e5+ {[%clk
0:07:47][%emt 0:00:47]} 37... Kg7 {[%clk 0:03:12][%emt 0:00:04]} 38. h4 {[%clk
0:06:34][%emt 0:01:43]} 38... h5 {[%clk 0:03:35][%emt 0:00:08]} 39. Bg2 {[%clk
0:04:53][%emt 0:02:11]} 39... Rd2 {[%clk 0:03:43][%emt 0:00:21]} 40. Bf3
{[%clk 0:04:25][%emt 0:00:59]} 40... Rc2 {[%clk 0:03:58][%emt 0:00:15]} 41.
Kf1 {[%clk 0:04:00][%emt 0:00:55]} 41... Kg8 {[%clk 0:03:50][%emt 0:00:38]}
42. Be2 {[%clk 0:04:11][%emt 0:00:19]} 42... Rb2 {[%clk 0:03:49][%emt 0:00:30]}
 43. Rd7 {[%clk 0:04:02][%emt 0:00:39]} 43... Ra2 {[%clk 0:03:47][%emt
0:00:33]} 44. Kf2 {[%clk 0:03:55][%emt 0:00:38]} 44... Rb2 {[%clk
0:03:37][%emt 0:00:40]} 45. Rd3 {[%clk 0:03:21][%emt 0:01:03]} 45... Rb1
{[%clk 0:03:49][%emt 0:00:18]} 46. Ke3 {[%clk 0:03:36][%emt 0:00:15]} 46...
Rb4 {[%clk 0:04:07][%emt 0:00:12]} 47. Rc3 {[%clk 0:03:44][%emt 0:00:23]}
47... Kg7 {[%clk 0:04:14][%emt 0:00:23]} 48. Bc4 {[%clk 0:03:54][%emt 0:00:21]}
 48... Rb1 {[%clk 0:04:03][%emt 0:00:41]} 49. Kd4 {[%clk 0:04:15][%emt
0:00:08]} 49... Rg1 {[%clk 0:03:57][%emt 0:00:36]} 50. Kc5 {[%clk
0:04:17][%emt 0:00:28]} 50... Rd1 {[%clk 0:03:51][%emt 0:00:36]} 51. Kc6
{[%clk 0:04:01][%emt 0:00:47]} 51... Rd2 {[%clk 0:04:09][%emt 0:00:07]} 52.
Kc7 {[%clk 0:03:20][%emt 0:01:14]} 52... Rd1 {[%clk 0:03:33][%emt 0:01:05]}
53. Bb5 {[%clk 0:02:57][%emt 0:00:55]} 53... Rd5 {[%clk 0:02:22][%emt 0:01:41]}
 54. Bc6 {[%clk 0:02:25][%emt 0:01:02]} 54... Rd1 {[%clk 0:02:33][%emt
0:00:18]} 55. Ra3 {[%clk 0:01:42][%emt 0:01:13]} 55... Rd2 {[%clk
0:02:14][%emt 0:00:49]} 56. Bd7 {[%clk 0:01:17][%emt 0:00:55]} 56... Rb2
{[%clk 0:01:57][%emt 0:00:47]} 57. Kd6 {[%clk 0:01:34][%emt 0:00:14]} 57...
Rb8 {[%clk 0:00:57][%emt 0:01:30]} 58. Ke7 {[%clk 0:01:52][%emt 0:00:11]}
58... Rb6 {[%clk 0:01:09][%emt 0:00:18]} 59. Rd3 {[%clk 0:01:46][%emt 0:00:36]}
 59... Rb7 {[%clk 0:01:31][%emt 0:00:09]} 60. Rc3 {[%clk 0:01:17][%emt
0:00:59]} 60... Ra7 {[%clk 0:01:51][%emt 0:00:09]} 61. Ke8 {[%clk
0:01:10][%emt 0:00:37]} 61... Rb7 {[%clk 0:01:50][%emt 0:00:31]} 62. Bc8
{[%clk 0:01:04][%emt 0:00:36]} 62... Ra7 {[%clk 0:01:48][%emt 0:00:31]} 63.
Kd8 {[%clk 0:00:46][%emt 0:00:49]} 63... Kf8 {[%clk 0:01:37][%emt 0:00:41]}
64. Bd7 {[%clk 0:00:37][%emt 0:00:39]} 64... Rb7 {[%clk 0:01:35][%emt 0:00:31]}
 65. Rc6 {[%clk 0:00:55][%emt 0:00:12]} 65... Rb8+ {[%clk 0:01:01][%emt
0:01:03]} 66. Kc7 {[%clk 0:01:00][%emt 0:00:26]} 66... Rb3 {[%clk
0:01:21][%emt 0:00:04]} 67. Bxe6 {[%clk 0:01:09][%emt 0:00:28]} 67... fxe6
{[%clk 0:01:47][%emt 0:00:03]} 68. Rxe6 {[%clk 0:01:32][%emt 0:00:07]} 68...
Rxg3 {[%clk 0:02:08][%emt 0:00:09]} 69. Rd6 {[%clk 0:01:27][%emt 0:00:35]}
69... Ke7 {[%clk 0:01:21][%emt 0:01:17]} 70. Rd7+ {[%clk 0:01:16][%emt
0:00:41]} 70... Ke6 {[%clk 0:01:18][%emt 0:00:31]} 71. Rd6+ {[%clk
0:01:26][%emt 0:00:22]} 71... Ke7 {[%clk 0:01:19][%emt 0:00:29]} 72. Rd7+
{[%clk 0:01:35][%emt 0:00:20]} 72... Ke6 {[%clk 0:01:46][%emt 0:00:04]} 73.
Rd6+ {[%clk 0:02:01][%emt 0:00:04]} 73... Ke7 {[%clk 0:01:22][%emt 0:00:20]}
74. Kd8 {[%emt 0:00:19]} 74... Kf7 75. Re6 {[%emt 0:00:05]} 75... Kf8 76. Kd7
{[%emt 0:00:14]} 76... Rg4 77. Rf6+ {[%emt 0:00:03]} 77... Rg3 {[%emt 0:00:05]}
 78. Re6 Rd3+ {[%emt 0:00:02]} 79. Rd6 {[%emt 0:00:02]} 79... Rf3 {[%emt
0:00:02]} 80. Kc7 {[%emt 0:00:08]} 80... Rg3 {[%emt 0:00:05]} 81. Re6 Re3
{[%emt 0:00:02]} 82. Kd7 Ra3 {[%emt 0:00:11]} 83. Rf6+ {[%emt 0:00:07]} 83...
Kg7 {[%emt 0:00:11]} 84. Rc6 {[%emt 0:00:20]} 1/2-1/2

[White "DOUCEMENT, Timothee"]
[Black "LADIER, Lucas"]
[WhiteElo "1856"]
[BlackElo "1833"]
[Result "1/2-1/2"]
[Date "2026.03.08"]

[Event "Chpt Reg Jeunes Occitanie 2026 - Espalion"]
[Site "Espalion, France"]
[Round "9.4"]
[ECO "?"]
[Annotator "?"]
[TimeControl "1h30 + 30sec/cp"]

1. c4 {[%clk 1:21:19][%emt 0:09:40]} 1... c5 {[%clk 1:30:55][%emt 0:00:05]} 2.
Nc3 {[%clk 1:21:42][%emt 0:00:07]} 2... Nf6 {[%clk 1:31:17][%emt 0:00:08]} 3.
Nf3 {[%clk 1:22:04][%emt 0:00:08]} 3... d5 {[%clk 1:31:39][%emt 0:00:09]} 4.
cxd5 {[%clk 1:22:20][%emt 0:00:13]} 4... Nxd5 {[%clk 1:32:03][%emt 0:00:06]}
5. d4 {[%clk 1:21:25][%emt 0:01:25]} 5... Nxc3 {[%clk 1:30:16][%emt 0:02:18]}
6. bxc3 {[%clk 1:21:25][%emt 0:00:30]} 6... g6 {[%clk 1:30:14][%emt 0:00:31]}
7. e4 {[%clk 1:20:57][%emt 0:00:58]} 7... Bg7 {[%clk 1:30:16][%emt 0:00:28]}
8. Bb5+ {[%clk 1:13:53][%emt 0:07:34]} 8... Nc6 {[%clk 1:19:55][%emt 0:10:51]}
9. Bxc6+ {[%clk 0:53:54][%emt 0:20:29]} 9... bxc6 {[%clk 1:20:17][%emt
0:00:08]} 10. O-O {[%clk 0:50:30][%emt 0:03:54]} 10... O-O {[%clk
1:17:10][%emt 0:03:36]} 11. h3 {[%clk 0:44:30][%emt 0:06:31]} 11... cxd4
{[%clk 1:13:50][%emt 0:03:50]} 12. cxd4 {[%clk 0:43:58][%emt 0:01:02]} 12...
c5 {[%clk 1:11:39][%emt 0:02:41]} 13. Be3 {[%clk 0:43:13][%emt 0:01:16]} 13...
Bb7 {[%clk 1:00:18][%emt 0:11:51]} 14. Qd3 {[%clk 0:38:17][%emt 0:05:25]}
14... Qa5 {[%clk 0:56:12][%emt 0:04:36]} 15. Rfc1 {[%clk 0:35:23][%emt
0:03:25]} 15... cxd4 {[%clk 0:53:21][%emt 0:03:20]} 16. Bxd4 {[%clk
0:33:38][%emt 0:02:14]} 16... Rfd8 {[%clk 0:52:50][%emt 0:01:02]} 17. Qe3
{[%clk 0:32:41][%emt 0:01:28]} 17... Bxd4 {[%clk 0:41:45][%emt 0:11:34]} 18.
Nxd4 {[%clk 0:32:22][%emt 0:00:49]} 18... Qe5 {[%clk 0:41:58][%emt 0:00:17]}
19. Nb3 {[%clk 0:32:05][%emt 0:00:47]} 19... Qxe4 {[%clk 0:39:59][%emt
0:02:28]} 20. Qxe4 {[%clk 0:32:24][%emt 0:00:11]} 20... Bxe4 {[%clk
0:40:17][%emt 0:00:12]} 21. Re1 {[%clk 0:32:47][%emt 0:00:06]} 21... Bd5
{[%clk 0:37:42][%emt 0:03:06]} 22. Rxe7 {[%clk 0:32:59][%emt 0:00:18]} 22...
a5 {[%clk 0:34:31][%emt 0:03:41]} 23. Nc5 {[%clk 0:30:39][%emt 0:02:50]} 23...
a4 {[%clk 0:24:40][%emt 0:10:22]} 24. a3 {[%clk 0:29:25][%emt 0:01:44]} 24...
Kg7 {[%clk 0:20:43][%emt 0:04:27]} 1/2-1/2

[White "NIEDERMEYER, Thomas"]
[Black "KELEMEN, Thomas"]
[WhiteElo "1734"]
[BlackElo "1626"]
[Result "1-0"]
[Date "2026.03.08"]